Cogmind - Beta 13 X2 @@@ ROGUE MODE // 2023.12.28 @ 12:40:03 Player: f3-rnm Result: Destroyed by G-47 Trooper with Particle Gun Performance ------------- Evolutions (0) 0 Regions Visited (2) 400 Robots Destroyed (23) 115 Value Destroyed (631) 631 Prototype IDs (0) 0 Alien Tech Used (0) 0 Bonus (7) 7 TOTAL SCORE: 1153 Bonus ------- Follower Combat Kills 7 Cogmind --------- Core Integrity 0/250 Matter 259/300 Energy 160/160 System Corruption 0% Temperature Cool (61) Movement Treading (240) Ox1 Location -10/Mines Parts ------- > --- POWER (1) -------- Light Nuclear Core > --- PROPULSION (2) --- Light Treads > --- UTILITY (2) ------ Large Storage Unit > --- WEAPON (2) ------- Light Assault Rifle Light Assault Rifle > --- INVENTORY (15) --- Light Nuclear Core Improved Heat Sink Medium Storage Unit High-capacity Matter Pod (200) Structural Scanner Seismic Detector Transport Network Coupler Utility Shielding Small Laser Peak State ------------ > --- POWER ------------ Light Nuclear Core > --- PROPULSION ------- Light Treads Light Treads > --- UTILITY ---------- Large Storage Unit > --- WEAPON ----------- Light Assault Rifle Light Assault Rifle > --- INVENTORY -------- Light Nuclear Core Light Treads Improved Heat Sink Medium Storage Unit High-capacity Matter Pod Structural Scanner Seismic Detector Transport Network Coupler Utility Shielding Small Laser [Rating: 9] Favorites ----------- Power Ion Engine Engine Ion Engine Power Core Light Nuclear Core Propulsion Light Treads Treads Light Treads Utility Large Storage Unit Storage Large Storage Unit Weapon Light Assault Rifle Ballistic Gun Light Assault Rifle Build | -11 -10 -10 ------- Run | Yrd Mat Min Slots Evolved . | . . . Power . | . . . Propulsion . | . . . Utility . | . . . Weapon . | . . . Parts Attached 14 | 6 3 5 Power 3 | 1 1 1 Engine 2 | 1 1 . Core 1 | . . 1 Reactor . | . . . Propulsion 4 | 2 . 2 Treads 4 | 2 . 2 Leg . | . . . Wheel . | . . . Hover . | . . . Flight . | . . . Utility 3 | 1 2 . Device . | . . . Storage 3 | 1 2 . Processor . | . . . Hackware . | . . . Protection . | . . . Artifact . | . . . Weapon 4 | 2 . 2 Energy Gun . | . . . Energy Cannon . | . . . Ballistic Gun 4 | 2 . 2 Ballistic Cannon . | . . . Launcher . | . . . Special Weapon . | . . . Impact Weapon . | . . . Slashing Weapon . | . . . Piercing Weapon . | . . . Special Melee Weapon . | . . . Unidentified Prototypes . | . . . Parts Lost 6 | . 1 5 Power 2 | . 1 1 Propulsion 3 | . . 3 Utility . | . . . Weapon 1 | . . 1 Highest Loss Streak 3 | . 1 3 To Critical Strikes . | . . . Average Slot Usage (%) 84 | . 85 84 Engine 13 | . 14 13 Treads 27 | . 28 27 Storage 14 | . 14 14 Ballistic Gun 27 | . 28 27 Naked Turns . | . . . Heaviest Build 28 | 13 28 28 Greatest Support 40 | 40 40 40 Greatest Overweight (x) 1 | . . 1 Average Overweight (x) . | . . . Largest Inventory Capacity 15 | 8 15 15 Average Capacity 13 | 6 11 15 Most Carried 13 | 5 11 13 Average Carried 8 | 1 7 10 Final Capacity 15 | 8 15 15 Final Carried 11 | 2 11 9 Class Distribution -------------------- 97% | Mutant Dominant Class ---------------- Mutant | -10/Materials Mutant | -10/Mines Resources | -11 -10 -10 ----------- Run | Yrd Mat Min Matter Collected 853 | 251 501 101 Remotely . | . . . Salvage Created 1011 | . 630 381 Parts 56 | . 36 20 Haulers Intercepted 2 | . 2 . Recyclers Shooed 1 | . . 1 Parts Field Recycled . | . . . Retrieved Matter . | . . . Parts Self-Destructed . | . . . Prevented . | . . . Kills | -11 -10 -10 ------- Run | Yrd Mat Min Combat Hostiles Destroyed 18 | . 11 7 Guns 18 | . 11 7 Classes Destroyed 6 | . 3 3 Worker 1 | . . 1 Tunneler 1 | . . 1 Hauler 2 | . 2 . Recycler 1 | . 1 . Swarmer 2 | . . 2 Grunt 16 | . 11 5 Best Kill Streak 4 | . 4 3 Combat Bots Only 3 | . 3 3 Max Kills in Single Turn 1 | . 1 1 Gunslinging . | . . . Exploded . | . . . Melee . | . . . Uniques/NPCs Destroyed . | . . . Combat | -11 -10 -10 -------- Run | Yrd Mat Min Hostile Shots Fired 124 | . 64 60 Missed 30 | . 18 12 Damage Taken 1145 | . 583 562 Core 252 | . 122 130 Absorbed by Shields . | . . . Core Remaining (%) 100 | 100 . . Volleys Fired 94 | . 53 41 Largest 2 | . 2 2 Hottest 40 | . 40 40 Shots Fired 185 | . 106 79 Gun 185 | . 106 79 Cannon . | . . . Launcher . | . . . Special . | . . . Kinetic 185 | . 106 79 Thermal . | . . . Explosive . | . . . Electromagnetic . | . . . Robot Hit Streak 19 | . 19 9 Robot Miss Streak 3 | . 3 3 Penetration Max . | . . . Secondary Targets 4 | . 1 3 Max Gunslinging Chain 1 | . 1 1 Shots Hit Robots 125 | . 73 52 Core Hits 53 | . 32 21 Critical Kills . | . . . Critical Parts Destroyed 2 | . 1 1 Critical Strikes 2 | . 1 1 Destroy 2 | . 1 1 Melee Attacks . | . . . Impact . | . . . Slashing . | . . . Piercing . | . . . Sneak Attacks . | . . . Combat Hostiles . | . . . Follow-up Attacks . | . . . Damage Inflicted 1314 | . 798 516 Guns 1314 | . 798 516 Cannons . | . . . Explosions . | . . . Melee . | . . . Ramming . | . . . Kinetic 1314 | . 798 516 Thermal . | . . . Explosive . | . . . Electromagnetic . | . . . Impact . | . . . Slashing . | . . . Piercing . | . . . Highest Corruption . | . . . Average Corruption . | . . . Corruption Purged . | . . . Corruption Blocked . | . . . Overload Shots . | . . . Overflow Damage . | . . . Projectiles . | . . . Explosions . | . . . Melee . | . . . Knockbacks . | . . . Impact . | . . . Kinetic . | . . . Secondary . | . . . Self-Inflicted Damage . | . . . Shots . | . . . Rammed . | . . . Targets Rammed . | . . . Kicked . | . . . Crushed . | . . . Highest Temperature 73 | . 36 73 Average Temperature 21 | . 11 31 Received Heat Transfer 594 | . 345 249 Siege Activations . | . . . Robots Corrupted . | . . . Combat Hostiles . | . . . Parts Fried . | . . . Impact Corruptions . | . . . Robots Melted . | . . . Combat Hostiles . | . . . Parts Melted . | . . . Heat Transferred . | . . . Parts Sabotaged . | . . . Parts Stolen . | . . . Parts Stripped . | . . . Power Chain Reactions . | . . . Missiles Intercepted . | . . . Alert | -11 -10 -10 ------- Run | Yrd Mat Min Peak Influence 225 | . 225 142 Initial 87 | . . 87 Average 82 | . 122 57 Maximum Alert Level 1 | . 1 . Low Security (%) 93 | 100 84 100 Level 1 6 | . 15 . Level 2 . | . . . Level 3 . | . . . Level 4 . | . . . Level 5 . | . . . High Security . | . . . Max Security . | . . . Squads Dispatched 3 | . 2 1 Investigation . | . . . Extermination . | . . . Reinforcement 2 | . 2 . Assault 1 | . . 1 Garrison . | . . . Intercept . | . . . Searches Triggered . | . . . Construction Impeded . | . . . Haulers Reinforced . | . . . Active Scanning Responses . | . . . Cargo Convoy Interrupts . | . . . Stealth | -11 -10 -10 --------- Run | Yrd Mat Min Distress Signals 1 | . 1 . Communications Jammed . | . . . Distress Signals . | . . . Times Spotted 29 | . 19 10 Peak Tracking Total 4 | . 3 4 Tactical Retreats 1 | . . 1 Traps | -11 -10 -10 ------- Run | Yrd Mat Min Traps Triggered . | . . . Indirectly . | . . . Trap Hack Attempts . | . . . Triggered . | . . . Disarmed . | . . . Reprogrammed . | . . . Reused . | . . . Traps Extracted . | . . . Installed . | . . . Triggered . | . . . Machines | -11 -10 -10 ---------- Run | Yrd Mat Min Machines Disabled 1 | . 1 . Max in Single Turn 1 | . 1 . Machines Repaired . | . . . Machines Dismantled . | . . . Machines Sabotaged . | . . . Overloaded Fab Kills . | . . . Hacking | -11 -10 -10 --------- Run | Yrd Mat Min Machines Accessed 1 | . 1 . Terminals 1 | . 1 . Fabricators . | . . . Repair Stations . | . . . Recycling Units . | . . . Scanalyzers . | . . . Garrison Access . | . . . Total Hacks 2 | . 2 . Successful 1 | . 1 . Failed . | . . . Catastrophic . | . . . Database Lockouts 1 | . 1 . Manual 2 | . 2 . Terminals 2 | . 2 . Fabricators . | . . . Repair Stations . | . . . Recycling Units . | . . . Scanalyzers . | . . . Garrison Access . | . . . Terminal Hacks 1 | . 1 . Robot Analysis 1 | . 1 . Fabricator Hacks . | . . . Repair Station Hacks . | . . . Recycling Unit Hacks . | . . . Scanalyzer . | . . . Garrison Access Hacks . | . . . Unauthorized Hacks . | . . . Terminals . | . . . Fabricators . | . . . Repair Stations . | . . . Recycling Units . | . . . Scanalyzers . | . . . Garrison Access . | . . . Data Cores Recovered . | . . . Used . | . . . Hacking Detections . | . . . Full Trace Events . | . . . Feedback Events . | . . . Feedback Blocked . | . . . Robot Schematics Acquired . | . . . Robots Built . | . . . Authchips . | . . . Time . | . . . Total Robot Build Rating . | . . . Part Schematics Acquired . | . . . Parts Built . | . . . Authchips . | . . . Time . | . . . Total Part Build Rating . | . . . Parts Repaired . | . . . Time . | . . . Parts Recycled . | . . . Recycled Matter . | . . . Retrieved Matter . | . . . Retrieved Components . | . . . Parts Scanalyzed . | . . . Part Schematics Acquired . | . . . Parts Damaged . | . . . Bothacking | -11 -10 -10 ------------ Run | Yrd Mat Min Used RIF Installer . | . . . Robots Hacked . | . . . Non-combat . | . . . Combat . | . . . Robot Hacks Applied . | . . . Relay Couplers Released . | . . . Fabnet Peak Effective % . | . . . Robots Rewired . | . . . Allies Hacked . | . . . Hacks Repelled . | . . . Allies | -11 -10 -10 -------- Run | Yrd Mat Min Total Allies 1 | . . 1 Largest Group 1 | . . 1 Highest-Rated Group 31 | . . 31 Highest-Rated Ally 31 | . . 31 Total Orders . | . . . Ally Attacks 8 | . . 8 Total Damage 107 | . . 107 Kills 1 | . . 1 Allies Corrupted . | . . . Allies Melted . | . . . Intel | -11 -10 -10 ------- Run | Yrd Mat Min Robot Analysis Total 1 | . 1 . Derelict Logs Recovered 2 | . . 2 Drone Launches . | . . . Drone Recoveries . | . . . Exploration | -11 -10 -10 ------------- Run | Yrd Mat Min Turns Passed 1763 | 82 762 919 Spaces Moved 901 | 54 346 501 Core 16 | 16 . . Treads 885 | 38 346 501 Legs . | . . . Wheels . | . . . Hover . | . . . Flight . | . . . Fastest Speed 50 | 50 160 160 Average Speed 158 | 127 160 160 Slowest Speed 240 | 160 160 240 Overloaded Moves . | . . . Propulsion Burnouts . | . . . Robots Hopped . | . . . Cave-ins Triggered . | . . . Exploration Rate (%) 51 | 4 64 86 Regions Visited 2 Branch Regions 1 Pre-discovered Areas 1 | . . 1 Known Exits Taken . | . . . Unknown Exits Taken 2 | 1 1 . Scrap Searched 2 | . . 2 Spaces Dug . | . . . Terrain Destroyed . | . . . Melee . | . . . Projectile . | . . . AOE . | . . . Terrain Rammed . | . . . Walls Destroyed . | . . . Machines Disabled . | . . . Actions | -11 -10 -10 --------- Run | Yrd Mat Min Total 1079 | 67 461 551 Wait 45 | . 45 . Move 899 | 53 345 501 Hop . | . . . Pick Up 22 | 8 11 3 Fast Attach 1 | . 1 . Attach 13 | 6 2 5 Detach 2 | . 2 . Swap . | . . . Drop 3 | . 2 1 Fire 94 | . 53 41 Melee . | . . . Ram . | . . . Kick . | . . . Crush . | . . . Escape Stasis . | . . . Rewire . | . . . Trap . | . . . Miscellaneous . | . . . Route ------- -11/Scrapyard -10/Materials (discovered 2 exits: [*Mat] / [*Min]) -10/Mines (discovered 1 exit: [*Mat]) History --------- Turn | Location | Event 5 | -11/Scrapyard | Discovered new exit (range 14) 83 | -11/Scrapyard | Entered Materials 85 | -10/Materials | Central database locked down 280 | -10/Materials | Discovered new exit (range 16) 301 | -10/Materials | Build established: Mutant 573 | -10/Materials | Discovered new exit (range 14) 845 | -10/Materials | Entered Mines 914 | -10/Mines | Learned Materials emergency access door positions 1079 | -10/Mines | Discovered new exit (range 15) 1118 | -10/Mines | Core integrity fell below 50% 1668 | -10/Mines | Met a Derelict testing a Signal Generator 1743 | -10/Mines | Core integrity fell below 20% 1764 | -10/Mines | Destroyed by G-47 Trooper with Particle Gun Last Messages --------------- assault force. 01675_ Signal Generator broadcasts a burst of procedurally generated transmissions. 01675_ ALERT: Intercepting significant anomalous signal. Redirecting assault force. 01675_ Signal Generator's internal power supply exhausted. 01706_ S-10 Pest destroyed. 01715_ G-34 Mercenary unfolds itself. 01721_ G-34 Mercenary suffers critical hit (Burn). 01724_ G-34 Mercenary destroyed. 01726_ RX-WIR(g) destroyed. 01730_ Ion Engine destroyed. 01732_ M-13 Machinist repairs G-47 Trooper. 01734_ M-13 Machinist repairs Imp. Heat Sink. 01736_ M-13 Machinist repairs G-34 Mercenary. 01738_ G-34 Mercenary destroyed. 01740_ Lgt. Treads destroyed. 01750_ G-34 Mercenary destroyed. 01750_ Switching to secondary target: G-47 Trooper. 01756_ Lgt. Treads destroyed. Map ----- +----------------------------------------------------+ | | | ?????????????????????????????????????????????????? | | ????????????????????????????????#####????????????? | | ????????????????????????????#### ##???????????? | | ????????????????????????????# #???????????? | | ???????###???????####???????# #????????????? | | ??????## #?????## ##??????# #?????????????? | | ??????# ?????# #??????#++#####?????????????? | | ??????# ##???# #??????# #?????????????????? | | ??????# #????# #??????# #?????????????????? | | ???????# ##???# ##?????# #?????????????????# | | ?????????# ##?## ####### ####?????????????## | | ??????????# ### # ##????????????# | | ??????????# ##???????????# | | ?????????## #########???# | | ?????##### #### *!%|=#???# | | ????## ##??## ###### #????# | | ##??# ## #????# k #?#### ###### | | ##?# #### #????# ##?# | | ### ##??## ##????## ###??# %! | | ### #????####?????## ##????# ######## | | ## ##???????????## ##?#### #?????## | | ## ###????######g ### #?????# | | ### #????# [%! #????## | | ##?# ## #????# ###%= %[## [%##??## | | # #??# #?# ##????# #?##@ !#### % #??# | | # #??# #??##?????# #??#####??# = #??# | | # #### #?????????# #?????????## ##% ## #??## | | # #?????????# #??????????##### ### #???### | | ###### [##????????# #??????????????# #??##?????? | | ???## % ##???????# #??????????????# #???????### | | ???# #???????# #?????????????## #??????# # | | #### % #???????# #????????????## ##?#### | | # [ ##???????# #????????????# ### | | # #####????????# #????????????# # | | #%####??####??????# #????????????# ## | | # #???### ##?????# #????????????# #? | | # #??## ##????# #???????????# #? | | # #??# ###### #?????###???# ### # | | # #??# #?? ##??# ##?### # | | # #??# # #??## ###?????# ## | | # #???# #??###?????????###? | | # #???## ## #?????????????????? | | # #????# ## ##????????????????????????? | | #???## #### ##?????????????????????????? | | # #???# #??#####??????????????????????????? | | # #???# ##?????????????????????????????????? | | # ##??## ####??####????????????????????????????? | | ##??# ##????## ##?#####?????????????????????? | | #??# ##????# ### ##????????????????????? | +----------------------------------------------------+ Best States ------------- Heat Dissipation 25 Energy Generation 14 Energy Capacity 250 Matter Stores 300 Matter Capacity 300 Sight Range 16 Terrain Scan Density 10 Evasion (%) 50 Recoil Reduction 2 Item Schematics ----------------- None Robot Schematics ------------------ None Fabricated ------------ Nothing Alien Tech Used ----------------- None Achievements -------------- None Challenges ------------ None Game ------ Seed BlastResetClaws Manual? 0 Play Time 00:08:06 Cumulative 136.9 hours Start 2023.12.28 @ 12:34:05 End 2023.12.28 @ 12:40:03 Sessions 1 Manual Loads 0 Difficulty Rogue Special Mode None Game No. 157 Rogue 121 Adventurer 36 Explorer 0 Win Type - Total 8 Types 2/0/6/0/0/0/0/0/0 Lore% 54 Gallery% 78 Achievement% 64 Wizard Run 0 Options --------- ASCII 0 Keyboard 0 Movement Mouse Keybinds 0 Fullscreen 1 Font 18/SmallcapsGlow Map View 76x50 Zoom Use 0% Tactical HUD 1 Map Filters NONE Filters NONE Steam 1 RUN: a9fdf9e9-f542-42b9-9065-8967c9aa56c1